[Event "*** Titled Tuesday Blitz"]
[Site "Chess.com"]
[Date "2019.06.04"]
[Round "5"]
[White "SloLev"]
[Black "LawrenceTrent"]
[Result "1/2-1/2"]
[WhiteElo "2502"]
[BlackElo "2685"]
[TimeControl "180+2"]
[EndTime "14:06:47 PDT"]
[Termination "Game drawn by repetition"]

1. d4 {[%clk 0:03:01.9]} 1... d5 {[%clk 0:03:00.7]} 2. Bf4 {[%clk 0:03:01.9]}
2... Nf6 {[%clk 0:02:57.7]} 3. e3 {[%clk 0:03:00.4]} 3... c5 {[%clk 0:02:58.5]}
4. c3 {[%clk 0:03:00.9]} 4... Nc6 {[%clk 0:02:59.2]} 5. Nd2 {[%clk 0:03:02.1]}
5... e6 {[%clk 0:02:55.6]} 6. Ngf3 {[%clk 0:03:01.1]} 6... cxd4 {[%clk
0:02:56.5]} 7. exd4 {[%clk 0:03:01.9]} 7... Nh5 {[%clk 0:02:56.7]} 8. Bg5 {[%clk
0:03:01.9]} 8... f6 {[%clk 0:02:53.6]} 9. Be3 {[%clk 0:03:03.2]} 9... Bd6 {[%clk
0:02:54.2]} 10. Bd3 {[%clk 0:03:02.1]} 10... Nf4 {[%clk 0:02:54.6]} 11. Bxf4
{[%clk 0:03:02.5]} 11... Bxf4 {[%clk 0:02:54.5]} 12. O-O {[%clk 0:02:57.6]}
12... O-O {[%clk 0:02:53.5]} 13. Qe2 {[%clk 0:02:50.1]} 13... Qd6 {[%clk
0:02:53.1]} 14. g3 {[%clk 0:02:47.9]} 14... Bh6 {[%clk 0:02:52.1]} 15. Rae1
{[%clk 0:02:49.2]} 15... Bd7 {[%clk 0:02:49.8]} 16. Bc2 {[%clk 0:02:25.1]} 16...
Rae8 {[%clk 0:02:49.3]} 17. Qd3 {[%clk 0:02:25.1]} 17... g6 {[%clk 0:02:50.5]}
18. Nh4 {[%clk 0:02:02.5]} 18... f5 {[%clk 0:02:49.1]} 19. f4 {[%clk 0:02:00.9]}
19... g5 {[%clk 0:02:45.7]} 20. fxg5 {[%clk 0:01:59]} 20... Bxg5 {[%clk
0:02:46.6]} 21. Nhf3 {[%clk 0:01:57.5]} 21... Bf6 {[%clk 0:02:47.4]} 22. Qe3
{[%clk 0:01:53.9]} 22... Kh8 {[%clk 0:02:47.2]} 23. Ne5 {[%clk 0:01:49.4]} 23...
Bg7 {[%clk 0:02:35.1]} 24. Ndf3 {[%clk 0:01:38.5]} 24... Nxe5 {[%clk 0:02:29.1]}
25. dxe5 {[%clk 0:01:25.1]} 25... Qa6 {[%clk 0:02:26.7]} 26. a3 {[%clk
0:01:22.7]} 26... Ba4 {[%clk 0:02:06.9]} 27. Bxa4 {[%clk 0:01:16.7]} 27... Qxa4
{[%clk 0:02:08.8]} 28. Nd4 {[%clk 0:01:18.2]} 28... Qd7 {[%clk 0:02:07.9]} 29.
Qg5 {[%clk 0:01:03.8]} 29... b5 {[%clk 0:02:06.4]} 30. Qh5 {[%clk 0:00:59.5]}
30... a5 {[%clk 0:02:05.3]} 31. Rf4 {[%clk 0:00:51.9]} 31... b4 {[%clk
0:01:52.7]} 32. Rh4 {[%clk 0:00:52]} 32... h6 {[%clk 0:01:53.7]} 33. axb4 {[%clk
0:00:47.7]} 33... axb4 {[%clk 0:01:54.8]} 34. cxb4 {[%clk 0:00:49.2]} 34... Qf7
{[%clk 0:01:53.8]} 35. Qxf7 {[%clk 0:00:45.4]} 35... Rxf7 {[%clk 0:01:55]} 36.
Nb5 {[%clk 0:00:40.3]} 36... Rb8 {[%clk 0:01:52.9]} 37. Nd6 {[%clk 0:00:40.5]}
37... Ra7 {[%clk 0:01:51.7]} 38. Rc1 {[%clk 0:00:38.1]} 38... Bxe5 {[%clk
0:01:43.2]} 39. Rxh6+ {[%clk 0:00:35.9]} 39... Kg7 {[%clk 0:01:42.5]} 40. Rxe6
{[%clk 0:00:37.3]} 40... Bxd6 {[%clk 0:01:14.3]} 41. Rxd6 {[%clk 0:00:37.9]}
41... Rxb4 {[%clk 0:01:15.9]} 42. Rxd5 {[%clk 0:00:34]} 42... Rxb2 {[%clk
0:01:17.1]} 43. Rxf5 {[%clk 0:00:35.1]} 43... Raa2 {[%clk 0:01:17.9]} 44. Rh5
{[%clk 0:00:36.4]} 44... Rg2+ {[%clk 0:01:18.1]} 45. Kh1 {[%clk 0:00:37.5]}
45... Kg6 {[%clk 0:01:19.6]} 46. Rh4 {[%clk 0:00:38.3]} 46... Rgb2 {[%clk
0:01:20.7]} 47. Rf1 {[%clk 0:00:30.4]} 47... Rc2 {[%clk 0:01:20.4]} 48. Kg1
{[%clk 0:00:28.3]} 48... Rg2+ {[%clk 0:01:20.7]} 49. Kh1 {[%clk 0:00:29.6]}
49... Rgb2 {[%clk 0:01:22.6]} 50. Rh8 {[%clk 0:00:28.6]} 50... Kg7 {[%clk
0:01:23.4]} 51. Rh4 {[%clk 0:00:25.9]} 51... Kg6 {[%clk 0:01:24.7]} 52. Re1
{[%clk 0:00:23.6]} 52... Rc2 {[%clk 0:01:24.9]} 53. Kg1 {[%clk 0:00:23.6]} 53...
Rg2+ {[%clk 0:01:25.4]} 54. Kh1 {[%clk 0:00:24.7]} 54... Rgb2 {[%clk 0:01:27.3]}
55. Re6+ {[%clk 0:00:19.4]} 55... Kf5 {[%clk 0:01:27]} 56. Re1 {[%clk
0:00:20.8]} 56... Kg6 {[%clk 0:01:28.1]} 57. Rg4+ {[%clk 0:00:20]} 57... Kh5
{[%clk 0:01:28.9]} 58. Rh4+ {[%clk 0:00:19.8]} 58... Kg6 {[%clk 0:01:30.1]}
1/2-1/2

[Event "*** Titled Tuesday Blitz"]
[Site "Chess.com"]
[Date "2019.06.04"]
[Round "5"]
[White "saraswathii"]
[Black "51616516516"]
[Result "1-0"]
[WhiteElo "2323"]
[BlackElo "2325"]
[TimeControl "180+2"]
[EndTime "14:06:47 PDT"]
[Termination "saraswathii won by resignation"]

1. d4 {[%clk 0:03:01.9]} 1... Nf6 {[%clk 0:02:59.3]} 2. Bf4 {[%clk 0:03:02.2]}
2... g6 {[%clk 0:03:00.3]} 3. e3 {[%clk 0:03:03.2]} 3... Bg7 {[%clk 0:03:01.1]}
4. Nf3 {[%clk 0:03:04.1]} 4... c5 {[%clk 0:03:02.4]} 5. c3 {[%clk 0:03:04.2]}
5... b6 {[%clk 0:03:03.7]} 6. Be2 {[%clk 0:03:02.1]} 6... d6 {[%clk 0:03:05.1]}
7. h3 {[%clk 0:03:01.2]} 7... Nbd7 {[%clk 0:03:06.4]} 8. O-O {[%clk 0:03:01.2]}
8... Bb7 {[%clk 0:03:07.9]} 9. Nbd2 {[%clk 0:03:01.4]} 9... O-O {[%clk
0:03:08.1]} 10. a4 {[%clk 0:03:01.7]} 10... a6 {[%clk 0:03:08.5]} 11. Qb3 {[%clk
0:02:59]} 11... Qc7 {[%clk 0:03:09.3]} 12. Rfe1 {[%clk 0:02:49.3]} 12... e5
{[%clk 0:03:09.9]} 13. dxe5 {[%clk 0:02:45.4]} 13... Nxe5 {[%clk 0:03:09.4]} 14.
Nxe5 {[%clk 0:02:43.7]} 14... dxe5 {[%clk 0:03:10.1]} 15. Bg3 {[%clk 0:02:45.1]}
15... Ne4 {[%clk 0:03:07.4]} 16. Nxe4 {[%clk 0:02:44.8]} 16... Bxe4 {[%clk
0:03:09.3]} 17. Rad1 {[%clk 0:02:38]} 17... Rfd8 {[%clk 0:03:08.5]} 18. Rxd8+
{[%clk 0:02:38.1]} 18... Qxd8 {[%clk 0:03:01.5]} 19. Rd1 {[%clk 0:02:35.7]}
19... Qc7 {[%clk 0:03:02]} 20. Bc4 {[%clk 0:02:31.6]} 20... h5 {[%clk
0:02:04.7]} 21. Rd2 {[%clk 0:02:23]} 21... Bf6 {[%clk 0:02:04]} 22. Qd1 {[%clk
0:02:19.6]} 22... Bc6 {[%clk 0:02:02.9]} 23. Rd6 {[%clk 0:02:08.7]} 23... Kg7
{[%clk 0:01:53.9]} 24. Rd2 {[%clk 0:01:26.3]} 24... b5 {[%clk 0:01:52.7]} 25.
Bb3 {[%clk 0:01:19.5]} 25... Qb7 {[%clk 0:01:42.9]} 26. f3 {[%clk 0:00:32.1]}
26... e4 {[%clk 0:01:42.4]} 27. Rd6 {[%clk 0:00:27.8]} 27... exf3 {[%clk
0:01:19.8]} 28. Rxf6 {[%clk 0:00:21.5]} 28... Kxf6 {[%clk 0:01:17.6]} 29. Qd6+
{[%clk 0:00:22.2]} 29... Kg7 {[%clk 0:01:18.3]} 30. Be5+ {[%clk 0:00:22.2]}
30... Kh7 {[%clk 0:00:34]} 31. Qf6 {[%clk 0:00:21]} 31... Rg8 {[%clk 0:00:34.1]}
32. Bxf7 {[%clk 0:00:21.3]} 32... f2+ {[%clk 0:00:16.6]} 33. Kxf2 {[%clk
0:00:21.3]} 33... Bxg2 {[%clk 0:00:15.5]} 34. Bxg6+ {[%clk 0:00:15]} 34... Kh6
{[%clk 0:00:12.9]} 35. Be4+ {[%clk 0:00:13.2]} 1-0

[Event "*** Titled Tuesday Blitz"]
[Site "Chess.com"]
[Date "2019.06.04"]
[Round "5"]
[White "ENEASZ"]
[Black "pedroholly22"]
[Result "1-0"]
[WhiteElo "2510"]
[BlackElo "2293"]
[TimeControl "180+2"]
[EndTime "14:06:48 PDT"]
[Termination "ENEASZ won by resignation"]

1. e4 {[%clk 0:03:01.9]} 1... e6 {[%clk 0:02:59.8]} 2. d4 {[%clk 0:03:02.4]}
2... d5 {[%clk 0:03:00.6]} 3. Bd3 {[%clk 0:03:03.3]} 3... c5 {[%clk 0:02:52]} 4.
exd5 {[%clk 0:03:03.2]} 4... exd5 {[%clk 0:02:49.9]} 5. Nf3 {[%clk 0:03:03.2]}
5... c4 {[%clk 0:02:50.4]} 6. Be2 {[%clk 0:03:02.3]} 6... Nf6 {[%clk 0:02:50.4]}
7. O-O {[%clk 0:03:00]} 7... Bd6 {[%clk 0:02:43]} 8. Re1 {[%clk 0:03:01.9]} 8...
O-O {[%clk 0:02:43.3]} 9. b3 {[%clk 0:02:47.3]} 9... b5 {[%clk 0:02:38.3]} 10.
a4 {[%clk 0:02:47.4]} 10... cxb3 {[%clk 0:02:38.9]} 11. axb5 {[%clk 0:02:42.2]}
11... bxc2 {[%clk 0:02:39.6]} 12. Qxc2 {[%clk 0:02:44.1]} 12... Nbd7 {[%clk
0:02:38.5]} 13. Bg5 {[%clk 0:02:22.9]} 13... h6 {[%clk 0:02:36.3]} 14. Bh4
{[%clk 0:02:23.5]} 14... Qb6 {[%clk 0:02:33.4]} 15. Nc3 {[%clk 0:02:13.8]} 15...
Bb7 {[%clk 0:02:33.5]} 16. Na4 {[%clk 0:02:11.7]} 16... Qd8 {[%clk 0:02:29.6]}
17. Nc5 {[%clk 0:02:10.9]} 17... Bc8 {[%clk 0:02:21.1]} 18. Bd3 {[%clk
0:01:58.6]} 18... Qc7 {[%clk 0:02:12.9]} 19. Rac1 {[%clk 0:01:52.3]} 19... Bb7
{[%clk 0:02:00.2]} 20. Nxb7 {[%clk 0:01:32.8]} 20... Qxb7 {[%clk 0:01:58.7]} 21.
Qc6 {[%clk 0:01:34.7]} 21... Qb6 {[%clk 0:01:50.7]} 22. Ne5 {[%clk 0:01:25.6]}
22... Bb4 {[%clk 0:00:58.9]} 23. Red1 {[%clk 0:01:06.1]} 23... Nxe5 {[%clk
0:00:51.9]} 24. dxe5 {[%clk 0:01:04.7]} 24... Ng4 {[%clk 0:00:52.6]} 25. Bg3
{[%clk 0:00:56.4]} 25... Qxc6 {[%clk 0:00:38.6]} 26. bxc6 {[%clk 0:00:58.3]}
26... Rfe8 {[%clk 0:00:39.4]} 27. c7 {[%clk 0:00:51]} 27... f6 {[%clk
0:00:23.9]} 28. exf6 {[%clk 0:00:37.6]} 28... Nxf6 {[%clk 0:00:25.8]} 29. Bf5
{[%clk 0:00:32.5]} 29... Rac8 {[%clk 0:00:25.5]} 30. Bxc8 {[%clk 0:00:32.9]}
30... Rxc8 {[%clk 0:00:27.4]} 31. Be5 {[%clk 0:00:32.3]} 31... Ba3 {[%clk
0:00:21.7]} 32. Ra1 {[%clk 0:00:31.1]} 32... Bc5 {[%clk 0:00:20.3]} 33. Rac1
{[%clk 0:00:19.7]} 33... Ba3 {[%clk 0:00:19.1]} 34. Rc6 {[%clk 0:00:19.5]} 34...
Nd7 {[%clk 0:00:14.4]} 35. Rxd5 {[%clk 0:00:18.5]} 35... Nxe5 {[%clk 0:00:15.6]}
36. Rxe5 {[%clk 0:00:20.4]} 36... Kf7 {[%clk 0:00:15.8]} 37. Ra5 {[%clk
0:00:18.5]} 37... Re8 {[%clk 0:00:15.7]} 38. g3 {[%clk 0:00:18.2]} 38... Bb4
{[%clk 0:00:16]} 39. Rxa7 {[%clk 0:00:18.1]} 39... Re7 {[%clk 0:00:16]} 40. Ra8
{[%clk 0:00:15.1]} 1-0

[Event "*** Titled Tuesday Blitz"]
[Site "Chess.com"]
[Date "2019.06.04"]
[Round "5"]
[White "bascheyaro"]
[Black "Witik"]
[Result "0-1"]
[WhiteElo "2795"]
[BlackElo "2627"]
[TimeControl "180+2"]
[EndTime "14:07:01 PDT"]
[Termination "Witik won by resignation"]

1. d4 {[%clk 0:03:01.9]} 1... d5 {[%clk 0:02:55.9]} 2. Nf3 {[%clk 0:02:52.6]}
2... e6 {[%clk 0:02:56.6]} 3. c4 {[%clk 0:02:53.1]} 3... c6 {[%clk 0:02:57.6]}
4. e3 {[%clk 0:02:53.8]} 4... Bd6 {[%clk 0:02:57.1]} 5. Nc3 {[%clk 0:02:54.9]}
5... f5 {[%clk 0:02:57.9]} 6. Bd3 {[%clk 0:02:53.4]} 6... Nf6 {[%clk 0:02:58.8]}
7. h3 {[%clk 0:02:54.3]} 7... O-O {[%clk 0:02:57.3]} 8. g4 {[%clk 0:02:51.1]}
8... Ne4 {[%clk 0:02:58.3]} 9. gxf5 {[%clk 0:02:48.1]} 9... exf5 {[%clk
0:02:57.3]} 10. cxd5 {[%clk 0:02:48.1]} 10... cxd5 {[%clk 0:02:47.3]} 11. Qb3
{[%clk 0:02:47.8]} 11... Be6 {[%clk 0:02:00.4]} 12. Rg1 {[%clk 0:02:28.2]} 12...
Kh8 {[%clk 0:01:08.7]} 13. Bd2 {[%clk 0:02:24.6]} 13... Nc6 {[%clk 0:00:46]} 14.
Bxe4 {[%clk 0:01:07.5]} 14... Na5 {[%clk 0:00:17.4]} 15. Qa4 {[%clk 0:01:03.4]}
15... fxe4 {[%clk 0:00:17.9]} 16. Ng5 {[%clk 0:01:04.6]} 16... Bg8 {[%clk
0:00:18.9]} 17. Ncxe4 {[%clk 0:01:01.7]} 17... dxe4 {[%clk 0:00:16.7]} 18. Qxa5
{[%clk 0:01:00]} 18... Qe7 {[%clk 0:00:18.3]} 19. Rg4 {[%clk 0:00:43.9]} 19...
b6 {[%clk 0:00:14.2]} 20. Qb5 {[%clk 0:00:42.3]} 20... a6 {[%clk 0:00:14.4]} 21.
Qe2 {[%clk 0:00:41.8]} 21... Bd5 {[%clk 0:00:14.7]} 22. h4 {[%clk 0:00:35.4]}
22... h6 {[%clk 0:00:15.8]} 23. Nh3 {[%clk 0:00:36.4]} 23... Rac8 {[%clk
0:00:17.2]} 24. Nf4 {[%clk 0:00:32.5]} 24... Bxf4 {[%clk 0:00:18.3]} 25. exf4
{[%clk 0:00:33.9]} 25... Bc4 {[%clk 0:00:19.6]} 26. Qe3 {[%clk 0:00:33.6]} 26...
Bd3 {[%clk 0:00:21.1]} 27. Bc3 {[%clk 0:00:34.8]} 27... b5 {[%clk 0:00:21.8]}
28. a3 {[%clk 0:00:35.5]} 28... a5 {[%clk 0:00:23]} 29. d5 {[%clk 0:00:36.1]}
29... Rf7 {[%clk 0:00:19.2]} 30. Rg6 {[%clk 0:00:36.9]} 30... b4 {[%clk
0:00:18.7]} 31. axb4 {[%clk 0:00:37.2]} 31... axb4 {[%clk 0:00:20.2]} 32. Be5
{[%clk 0:00:36.2]} 32... Kh7 {[%clk 0:00:20.7]} 33. h5 {[%clk 0:00:34.3]} 33...
Rc2 {[%clk 0:00:21.4]} 34. Kd1 {[%clk 0:00:27.6]} 34... Qh4 {[%clk 0:00:21.8]}
35. Qg3 {[%clk 0:00:24.8]} 35... Qxh5+ {[%clk 0:00:22]} 36. Rg4 {[%clk
0:00:26.1]} 36... b3 {[%clk 0:00:21.1]} 37. Ra8 {[%clk 0:00:21.4]} 37... Be2+
{[%clk 0:00:21.8]} 38. Ke1 {[%clk 0:00:22.5]} 38... Bxg4 {[%clk 0:00:21.1]} 39.
Qg1 {[%clk 0:00:16.5]} 39... Bh3 {[%clk 0:00:16.9]} 40. f3 {[%clk 0:00:16]}
40... Qxf3 {[%clk 0:00:13.4]} 41. Rh8+ {[%clk 0:00:15.7]} 41... Kxh8 {[%clk
0:00:14.1]} 0-1

[Event "*** Titled Tuesday Blitz"]
[Site "Chess.com"]
[Date "2019.06.04"]
[Round "5"]
[White "rasmussvane"]
[Black "volcanoexplorer"]
[Result "1-0"]
[WhiteElo "2880"]
[BlackElo "2602"]
[TimeControl "180+2"]
[EndTime "14:07:04 PDT"]
[Termination "rasmussvane won by resignation"]

1. Nf3 {[%clk 0:03:01.9]} 1... Nf6 {[%clk 0:03:00]} 2. c4 {[%clk 0:03:02.5]}
2... e6 {[%clk 0:03:00.6]} 3. g3 {[%clk 0:03:02.4]} 3... b6 {[%clk 0:03:01.7]}
4. Bg2 {[%clk 0:03:03.6]} 4... Bb7 {[%clk 0:03:03.2]} 5. O-O {[%clk 0:03:05.2]}
5... Be7 {[%clk 0:03:04.4]} 6. d4 {[%clk 0:03:06.6]} 6... O-O {[%clk 0:03:05]}
7. Re1 {[%clk 0:03:08.1]} 7... a5 {[%clk 0:03:05]} 8. Bf4 {[%clk 0:03:06.9]}
8... d6 {[%clk 0:03:03.2]} 9. Qc2 {[%clk 0:03:07.1]} 9... Be4 {[%clk 0:03:03]}
10. Qc1 {[%clk 0:03:07.5]} 10... Re8 {[%clk 0:02:47.4]} 11. Nc3 {[%clk
0:03:08.2]} 11... Bb7 {[%clk 0:02:48.5]} 12. e4 {[%clk 0:03:09]} 12... Nfd7
{[%clk 0:02:34.6]} 13. Qc2 {[%clk 0:03:08.3]} 13... Nc6 {[%clk 0:02:34]} 14.
Rad1 {[%clk 0:03:08.1]} 14... Qc8 {[%clk 0:02:27.1]} 15. e5 {[%clk 0:03:03]}
15... dxe5 {[%clk 0:02:23.2]} 16. dxe5 {[%clk 0:03:03.6]} 16... Nc5 {[%clk
0:01:55]} 17. h4 {[%clk 0:03:04.3]} 17... Nb4 {[%clk 0:01:52.2]} 18. Qb1 {[%clk
0:03:03]} 18... a4 {[%clk 0:01:37]} 19. h5 {[%clk 0:02:16.2]} 19... h6 {[%clk
0:01:21.7]} 20. g4 {[%clk 0:02:16]} 20... Bc6 {[%clk 0:01:16.7]} 21. a3 {[%clk
0:02:11.7]} 21... Qb7 {[%clk 0:00:44.7]} 22. Re3 {[%clk 0:01:41.7]} 22... Nba6
{[%clk 0:00:45.6]} 23. g5 {[%clk 0:01:43]} 23... hxg5 {[%clk 0:00:33.9]} 24.
Bxg5 {[%clk 0:01:44.3]} 24... Bxg5 {[%clk 0:00:18.2]} 25. Nxg5 {[%clk
0:01:46.2]} 25... Bxg2 {[%clk 0:00:10]} 26. Qh7+ {[%clk 0:01:34.2]} 26... Kf8
{[%clk 0:00:11.3]} 27. Rg3 {[%clk 0:01:26.2]} 27... Ke7 {[%clk 0:00:03.4]} 28.
Qxg7 {[%clk 0:01:23.9]} 28... Rf8 {[%clk 0:00:03.7]} 29. Rxg2 {[%clk 0:01:17.8]}
29... Nd7 {[%clk 0:00:03.8]} 30. Nh7 {[%clk 0:00:58.7]} 30... Rg8 {[%clk
0:00:04.2]} 31. Rxd7+ {[%clk 0:00:59.8]} 31... Kxd7 {[%clk 0:00:05]} 32. Qxf7+
{[%clk 0:01:01.3]} 32... Kc6 {[%clk 0:00:06.1]} 33. Rxg8 {[%clk 0:00:52.1]}
33... Rxg8+ {[%clk 0:00:08]} 34. Qxg8 {[%clk 0:00:53.8]} 34... Kc5 {[%clk
0:00:08.9]} 35. Qxe6 {[%clk 0:00:54.8]} 35... c6 {[%clk 0:00:09.1]} 36. Ng5
{[%clk 0:00:50.1]} 36... Qg7 {[%clk 0:00:09.7]} 37. f4 {[%clk 0:00:51]} 37...
Nc7 {[%clk 0:00:09.5]} 38. Qd6+ {[%clk 0:00:48.4]} 38... Kxc4 {[%clk 0:00:11]}
39. Qxc6+ {[%clk 0:00:49]} 39... Kb3 {[%clk 0:00:11.9]} 40. Ne2 {[%clk
0:00:44.3]} 40... Qg8 {[%clk 0:00:10.4]} 41. Qc3+ {[%clk 0:00:42.8]} 41... Ka2
{[%clk 0:00:11.4]} 42. Qc2 {[%clk 0:00:42.6]} 42... Nb5 {[%clk 0:00:09.6]} 43.
b3+ {[%clk 0:00:39.1]} 43... Kxa3 {[%clk 0:00:08.9]} 44. bxa4 {[%clk 0:00:40.7]}
44... Qd5 {[%clk 0:00:02.7]} 45. axb5 {[%clk 0:00:38]} 45... Kb4 {[%clk
0:00:03.8]} 46. Qb2+ {[%clk 0:00:36]} 46... Ka5 {[%clk 0:00:04.9]} 47. Qa3+
{[%clk 0:00:35.8]} 47... Kxb5 {[%clk 0:00:06.3]} 48. Nc3+ {[%clk 0:00:37.2]} 1-0

[Event "*** Titled Tuesday Blitz"]
[Site "Chess.com"]
[Date "2019.06.04"]
[Round "5"]
[White "Sanan_Sjugirov"]
[Black "DanielMieles1985"]
[Result "1-0"]
[WhiteElo "2854"]
[BlackElo "2636"]
[TimeControl "180+2"]
[EndTime "14:07:15 PDT"]
[Termination "Sanan_Sjugirov won by resignation"]

1. e4 {[%clk 0:03:01.9]} 1... e5 {[%clk 0:02:56.8]} 2. Nf3 {[%clk 0:03:02.7]}
2... Nc6 {[%clk 0:02:57.9]} 3. Bb5 {[%clk 0:03:03.1]} 3... a6 {[%clk 0:02:59]}
4. Ba4 {[%clk 0:03:04.1]} 4... Nf6 {[%clk 0:03:00.2]} 5. O-O {[%clk 0:03:04.8]}
5... Be7 {[%clk 0:03:01.2]} 6. Re1 {[%clk 0:03:05.5]} 6... b5 {[%clk 0:03:02.5]}
7. Bb3 {[%clk 0:03:06.9]} 7... d6 {[%clk 0:03:03.9]} 8. c3 {[%clk 0:03:08.3]}
8... O-O {[%clk 0:03:04.9]} 9. h3 {[%clk 0:03:09.7]} 9... Na5 {[%clk 0:03:05.4]}
10. Bc2 {[%clk 0:03:10.4]} 10... c5 {[%clk 0:03:07]} 11. d4 {[%clk 0:03:11.4]}
11... Nd7 {[%clk 0:03:08.2]} 12. d5 {[%clk 0:03:10.4]} 12... Nb6 {[%clk
0:03:08.6]} 13. Nbd2 {[%clk 0:03:08.8]} 13... Qe8 {[%clk 0:03:09.7]} 14. Nf1
{[%clk 0:02:56.3]} 14... f5 {[%clk 0:03:10.1]} 15. exf5 {[%clk 0:02:57.4]} 15...
Bxf5 {[%clk 0:03:11]} 16. Bxf5 {[%clk 0:02:58.2]} 16... Rxf5 {[%clk 0:03:12.9]}
17. Ng3 {[%clk 0:02:58.8]} 17... Rf8 {[%clk 0:03:12.7]} 18. Bg5 {[%clk
0:02:26.4]} 18... Nb7 {[%clk 0:02:49.7]} 19. Bxe7 {[%clk 0:02:20.8]} 19... Qxe7
{[%clk 0:02:49.7]} 20. Qd3 {[%clk 0:02:15.8]} 20... h6 {[%clk 0:02:38.3]} 21.
Rad1 {[%clk 0:02:11.1]} 21... Rf4 {[%clk 0:02:29.7]} 22. Nh5 {[%clk 0:02:03.3]}
22... Rff8 {[%clk 0:02:18.8]} 23. Ng3 {[%clk 0:01:45.3]} 23... Rf4 {[%clk
0:02:16.4]} 24. Re4 {[%clk 0:01:38.8]} 24... Raf8 {[%clk 0:02:14.7]} 25. Rxf4
{[%clk 0:01:38.8]} 25... Rxf4 {[%clk 0:02:09.2]} 26. b3 {[%clk 0:01:32.9]} 26...
Qf7 {[%clk 0:01:53.8]} 27. Qd2 {[%clk 0:01:28.2]} 27... c4 {[%clk 0:01:37.9]}
28. b4 {[%clk 0:01:25.4]} 28... Nd8 {[%clk 0:01:08.1]} 29. Nh2 {[%clk
0:01:18.7]} 29... Qg6 {[%clk 0:01:05.3]} 30. Ng4 {[%clk 0:01:14.6]} 30... Qd3
{[%clk 0:00:43.5]} 31. Qc1 {[%clk 0:01:05.6]} 31... Qg6 {[%clk 0:00:40.8]} 32.
Qe3 {[%clk 0:01:02.1]} 32... Qc2 {[%clk 0:00:38.1]} 33. Rd2 {[%clk 0:00:51.8]}
33... Qc1+ {[%clk 0:00:33.6]} 34. Kh2 {[%clk 0:00:52.7]} 34... Rf8 {[%clk
0:00:19.1]} 35. Ne4 {[%clk 0:00:36.6]} 35... Nc8 {[%clk 0:00:18]} 36. Nxh6+
{[%clk 0:00:25.8]} 36... gxh6 {[%clk 0:00:18.8]} 37. Qxh6 {[%clk 0:00:27.7]}
37... Rf4 {[%clk 0:00:09]} 38. Re2 {[%clk 0:00:18.3]} 38... Nf7 {[%clk
0:00:08.2]} 39. Nf6+ {[%clk 0:00:17.7]} 39... Rxf6 {[%clk 0:00:07.3]} 40. Qxc1
{[%clk 0:00:18.7]} 40... Ne7 {[%clk 0:00:08.6]} 41. Qd1 {[%clk 0:00:19]} 41...
Kg7 {[%clk 0:00:07.9]} 42. Re3 {[%clk 0:00:19.4]} 42... Ng6 {[%clk 0:00:09.3]}
43. Rg3 {[%clk 0:00:20.5]} 43... Nh6 {[%clk 0:00:10.3]} 44. Qh5 {[%clk
0:00:17.9]} 44... Kh7 {[%clk 0:00:10.9]} 45. Qg5 {[%clk 0:00:17.4]} 45... Nf7
{[%clk 0:00:11.2]} 46. Qxf6 {[%clk 0:00:18.3]} 1-0

[Event "*** Titled Tuesday Blitz"]
[Site "Chess.com"]
[Date "2019.06.04"]
[Round "5"]
[White "Swarnapuri"]
[Black "maciek_92"]
[Result "0-1"]
[WhiteElo "2696"]
[BlackElo "2691"]
[TimeControl "180+2"]
[EndTime "14:07:16 PDT"]
[Termination "maciek_92 won by resignation"]

1. d4 {[%clk 0:03:01.9]} 1... Nf6 {[%clk 0:03:00.5]} 2. Bf4 {[%clk 0:03:03]}
2... d5 {[%clk 0:02:59.3]} 3. e3 {[%clk 0:03:03.9]} 3... c5 {[%clk 0:03:00.7]}
4. c3 {[%clk 0:03:04.9]} 4... e6 {[%clk 0:02:59.4]} 5. Nd2 {[%clk 0:03:06.3]}
5... Nc6 {[%clk 0:03:00.8]} 6. Ngf3 {[%clk 0:03:07.3]} 6... Bd6 {[%clk
0:03:02.3]} 7. Bg3 {[%clk 0:03:08.6]} 7... O-O {[%clk 0:03:03.4]} 8. Bb5 {[%clk
0:03:10.2]} 8... Ne7 {[%clk 0:02:57.9]} 9. Bd3 {[%clk 0:03:10.4]} 9... Nf5
{[%clk 0:02:54.3]} 10. Bxf5 {[%clk 0:03:11.4]} 10... exf5 {[%clk 0:02:56.2]} 11.
Bxd6 {[%clk 0:03:13]} 11... Qxd6 {[%clk 0:02:56.8]} 12. dxc5 {[%clk 0:03:14.9]}
12... Qxc5 {[%clk 0:02:58.2]} 13. O-O {[%clk 0:03:16.8]} 13... Ne4 {[%clk
0:02:47.6]} 14. Qc2 {[%clk 0:03:10.9]} 14... Be6 {[%clk 0:02:44.3]} 15. Nd4
{[%clk 0:03:09.4]} 15... Rac8 {[%clk 0:02:45]} 16. Rad1 {[%clk 0:03:09.7]} 16...
g6 {[%clk 0:02:42.8]} 17. Qa4 {[%clk 0:03:05.6]} 17... a6 {[%clk 0:02:38.4]} 18.
a3 {[%clk 0:02:57]} 18... h5 {[%clk 0:02:28.3]} 19. h3 {[%clk 0:02:46.7]} 19...
Rc7 {[%clk 0:02:18.6]} 20. Ne2 {[%clk 0:02:41.1]} 20... Bd7 {[%clk 0:02:11.9]}
21. Qc2 {[%clk 0:02:35]} 21... Bb5 {[%clk 0:02:02.5]} 22. Rfe1 {[%clk
0:02:36.3]} 22... Bxe2 {[%clk 0:01:51.4]} 23. Rxe2 {[%clk 0:02:36.9]} 23... Nf6
{[%clk 0:01:45.8]} 24. Nf3 {[%clk 0:02:35.8]} 24... b5 {[%clk 0:01:45]} 25. Red2
{[%clk 0:02:34.7]} 25... Re8 {[%clk 0:01:40.6]} 26. Rd4 {[%clk 0:02:30.9]} 26...
Re4 {[%clk 0:01:39.8]} 27. Qb3 {[%clk 0:02:30]} 27... Rce7 {[%clk 0:01:28.4]}
28. g3 {[%clk 0:02:27.5]} 28... Qc7 {[%clk 0:01:23.2]} 29. Kg2 {[%clk
0:02:26.5]} 29... Kg7 {[%clk 0:01:23.6]} 30. R4d3 {[%clk 0:02:26.9]} 30... R4e6
{[%clk 0:01:11.4]} 31. Nd4 {[%clk 0:02:25.8]} 31... Rb6 {[%clk 0:01:08.7]} 32.
Nf3 {[%clk 0:02:26.3]} 32... Re4 {[%clk 0:00:59.4]} 33. Rd4 {[%clk 0:02:24.8]}
33... Rb8 {[%clk 0:00:56.3]} 34. Qb4 {[%clk 0:02:23.9]} 34... a5 {[%clk
0:00:46.1]} 35. Qb3 {[%clk 0:02:25]} 35... Qc6 {[%clk 0:00:45.8]} 36. R1d3
{[%clk 0:02:22]} 36... Qe8 {[%clk 0:00:38.7]} 37. Rd2 {[%clk 0:02:19.6]} 37...
Rc8 {[%clk 0:00:39.3]} 38. Rd1 {[%clk 0:02:20.7]} 38... Kh6 {[%clk 0:00:37.1]}
39. Qc2 {[%clk 0:02:20.2]} 39... Qe7 {[%clk 0:00:34.5]} 40. Qd2 {[%clk
0:02:20.4]} 40... Kg7 {[%clk 0:00:31.4]} 41. Ng5 {[%clk 0:02:20]} 41... Rxd4
{[%clk 0:00:28.3]} 42. Qxd4 {[%clk 0:02:20.2]} 42... Rc4 {[%clk 0:00:29.7]} 43.
Qb6 {[%clk 0:02:21.3]} 43... b4 {[%clk 0:00:29]} 44. Qxa5 {[%clk 0:02:16.1]}
44... bxc3 {[%clk 0:00:29.3]} 45. bxc3 {[%clk 0:02:17.3]} 45... h4 {[%clk
0:00:29]} 46. Rd4 {[%clk 0:02:10.9]} 46... hxg3 {[%clk 0:00:27.3]} 47. Rxc4
{[%clk 0:02:12.1]} 47... dxc4 {[%clk 0:00:27.8]} 48. Qb4 {[%clk 0:02:06.2]}
48... Qc7 {[%clk 0:00:15]} 49. f4 {[%clk 0:01:57.2]} 49... Nd5 {[%clk
0:00:15.4]} 50. Qb2 {[%clk 0:01:50.6]} 50... Nxe3+ {[%clk 0:00:15.5]} 51. Kxg3
{[%clk 0:01:52.2]} 51... Qc6 {[%clk 0:00:12.4]} 52. Qe2 {[%clk 0:01:51.1]} 52...
Qc5 {[%clk 0:00:09]} 53. Nf3 {[%clk 0:01:50.8]} 53... Nd5 {[%clk 0:00:06.4]} 54.
Qe5+ {[%clk 0:01:51.1]} 54... f6 {[%clk 0:00:07.2]} 55. Qe6 {[%clk 0:01:51.2]}
55... Nxc3 {[%clk 0:00:06.9]} 56. Qd7+ {[%clk 0:01:46.1]} 56... Kh6 {[%clk
0:00:08.1]} 57. Nd4 {[%clk 0:01:40.4]} 57... Ne4+ {[%clk 0:00:08.6]} 58. Kf3
{[%clk 0:01:41.3]} 58... Qxa3+ {[%clk 0:00:09.6]} 59. Kg2 {[%clk 0:01:41.2]}
59... Qg3+ {[%clk 0:00:10.5]} 0-1